bitfinex/quotes_SOLUSD_20251007
["timestamp","ask_amount","ask_price","bid_price","bid_amount"]
[1759848937530,8.09511008,225.99,225.97,31.96]
[1759848937703,7.43511008,225.99,225.97,31.96]
[1759848938029,3.67011305,225.98,225.97,31.96]
[1759848939037,5.12517036,225.98,225.97,31.96]
[1759848939200,8.13528341,225.98,225.97,31.96]
[1759848940516,5.12517036,225.98,225.97,31.96]
[1759848940726,3.71011305,225.98,225.97,31.96]
[1759848941500,7.43489181,226.0,225.97,32.65]
[1759848941804,3.01011305,226.04,225.98,0.69]
[1759848942004,3.01011305,226.04,225.99,31.96]
[1759848942221,3.01011305,226.04,225.99,32.65]
[1759848942420,3.01011305,226.04,225.99,31.96]
[1759848942724,18.4934132,226.05,226.0,0.69]
[1759848942917,4.42419147,226.03,226.01,31.96]
[1759848943718,8.13430452,226.03,226.01,31.96]
[1759848943907,4.42419147,226.03,226.01,31.96]
[1759848944108,7.43430452,226.03,226.01,31.96]
[1759848944516,8.13430452,226.03,226.01,31.96]
[1759848944721,20.8,226.06,226.01,31.96]
[1759848944931,21.5,226.06,226.01,31.96]
[1759848945237,3.01011305,226.04,226.01,32.65]
[1759848945819,4.42419147,226.03,226.01,32.65]
[1759848946225,3.71011305,226.02,226.01,31.96]
[1759848947242,11.57647521,226.02,225.96,34.46]
[1759848947415,0.7,226.01,225.96,34.46]
[1759848947615,3.01011305,225.97,225.96,34.46]
[1759848947836,4.42536619,225.97,225.96,35.15]
[1759848948008,4.42536619,225.97,225.96,34.46]
[1759848948506,4.42536619,225.97,225.96,66.42]
[1759848948835,7.43547924,225.97,225.96,66.42]
[1759848949709,5.12536619,225.97,225.96,66.42]
[1759848949909,8.13547924,225.97,225.96,66.42]
[1759848950220,4.42478296,226.0,225.96,66.42]
[1759848950419,3.01011305,225.98,225.96,66.42]
[1759848951644,4.42517036,225.98,225.97,0.69]
[1759848951936,0.7,226.02,225.97,0.69]
[1759848951937,4.42438722,226.02,225.97,0.69]
[1759848952136,4.42438722,226.02,225.98,31.96]
[1759848952438,4.42438722,226.02,225.99,0.69]
[1759848952641,4.42438722,226.02,226.0,32.63]
[1759848953137,4.42419147,226.03,226.0,32.63]
[1759848953633,4.42419147,226.03,226.01,0.69]
[1759848953937,4.42419147,226.03,226.02,31.94]
[1759848955131,11.06045303,226.04,226.02,31.94]
[1759848955316,3.01011305,226.03,226.02,31.94]
[1759848956429,11.06045303,226.04,226.02,32.63]
[1759848956637,14.07056608,226.04,226.02,31.94]
[1759848956838,18.49456183,226.04,226.02,31.94]
[1759848957521,18.49456183,226.04,226.02,32.63]
[1759848957725,3.01011305,226.03,226.02,31.94]
[1759848958031,3.01011305,226.03,226.02,66.42]
[1759848958032,3.69011305,226.03,226.02,66.42]
[1759848958943,4.42419147,226.03,226.02,66.42]
[1759848959540,7.43430452,226.03,226.02,66.42]
[1759848959845,8.11430452,226.03,226.02,66.42]
[1759848960019,7.43430452,226.03,226.02,66.42]
[1759848960637,4.42419147,226.03,226.02,66.42]
[1759848960828,8.11430452,226.03,226.02,66.42]
[1759848961623,11.07863234,226.03,226.02,66.42]
[1759848962417,8.06851929,226.03,226.02,66.42]
[1759848962620,11.07863234,226.03,226.02,66.42]
[1759848962922,4.42419147,226.03,226.02,66.42]
[1759848963125,7.43430452,226.03,226.02,66.42]
[1759848963648,2.30740284,226.07,226.02,67.11]
[1759848963848,4.42341645,226.07,226.03,0.69]
[1759848964142,7.43313043,226.09,226.04,31.94]
[1759848964358,10.39865255,226.1,226.05,0.69]
[1759848964648,3.01011305,226.09,226.06,32.63]
[1759848964941,7.4331933,226.09,226.07,32.63]
[1759848965319,3.01011305,226.08,226.07,31.94]
[1759848965750,4.42308025,226.09,226.07,31.94]
[1759848966337,4.42308025,226.09,226.02,34.48]
[1759848966528,4.42308025,226.09,226.03,32.63]
[1759848966950,4.42308025,226.09,226.04,0.69]
[1759848967235,7.43293481,226.1,226.04,0.69]
[1759848967456,18.48998921,226.1,226.04,0.69]
[1759848967655,3.01011305,226.07,226.05,31.92]
[1759848968148,3.01011305,226.08,226.05,32.61]
[1759848968340,15.47987616,226.1,226.05,31.92]
[1759848968520,3.01011305,226.09,226.05,31.92]
[1759848968871,3.01011305,226.09,226.05,32.61]
[1759848969016,16.15987616,226.1,226.05,32.61]
[1759848969220,4.42282176,226.1,226.05,32.61]
[1759848969434,3.01011305,226.09,226.05,32.61]
[1759848969866,3.01011305,226.09,226.05,31.92]
[1759848970160,3.01011305,226.08,226.05,31.92]
[1759848971128,3.01011305,226.06,226.02,34.48]
[1759848971320,3.01011305,226.03,226.02,34.48]
[1759848971528,3.69011305,226.03,225.94,0.69]
[1759848971829,21.48,226.03,226.02,34.48]
[1759848972033,20.8,226.02,225.92,0.69]
[1759848972230,2.96976115,226.01,225.93,34.48]
[1759848972546,0.68,226.0,225.93,34.48]
[1759848972733,0.68,226.0,225.94,31.92]
[1759848972936,3.01011305,225.96,225.94,31.92]
[1759848973137,7.43583411,225.96,225.94,31.92]
[1759848973341,8.11583411,225.96,225.95,34.48]
[1759848973661,8.11583411,225.96,225.95,66.4]
[1759848973662,7.43583411,225.96,225.95,66.4]
[1759848973944,4.42572106,225.96,225.95,66.4]
[1759848974137,7.43583411,225.96,225.95,34.48]
[1759848974342,7.43583411,225.96,225.95,66.4]
[1759848974544,19.17973922,225.96,225.87,0.69]
[1759848974726,3.01011305,225.89,225.85,1e-08]
[1759848974928,3.01011305,225.89,225.87,0.69]
[1759848975131,3.01011305,225.89,225.88,0.69]
[1759848975331,3.01011305,225.91,225.88,0.69]
[1759848975638,3.01011305,225.9,225.86,0.69]
[1759848975954,3.01011305,225.9,225.87,31.92]
[1759848976253,3.01011305,225.9,225.87,32.61]
[1759848976460,3.01011305,225.89,225.85,1e-08]
[1759848976745,3.01011305,225.86,225.85,1e-08]
[1759848977047,3.01011305,225.86,225.85,24.30000001]
[1759848977259,4.42752147,225.86,225.85,24.30000001]
[1759848977422,7.43763452,225.86,225.85,24.30000001]
[1759848977736,8.11763452,225.86,225.85,66.40000001]
[1759848978053,39.79410973,225.86,225.85,1e-08]
[1759848978252,39.79410973,225.86,225.85,66.40000001]
[1759848978456,39.79410973,225.86,225.85,34.48]
[1759848978750,20.8,225.83,225.77,0.2]
[1759848979069,3.01011305,225.81,225.77,0.2]
[1759848979233,18.31509009,225.81,225.77,0.2]
[1759848979428,25.90850183,225.81,225.77,0.2]
[1759848979627,3.01011305,225.78,225.77,0.2]
[1759848979828,3.01011305,225.78,225.77,3.44]
[1759848980248,36.29975642,225.81,225.77,3.44]
[1759848980461,3.01011305,225.78,225.77,3.44]
[1759848981270,7.43920331,225.78,225.77,3.44]
[1759848981655,3.01011305,225.8,225.77,4.13]
[1759848981850,3.01011305,225.78,225.77,3.44]
[1759848982057,20.8,225.8,225.77,3.44]
[1759848982362,3.01011305,225.78,225.77,3.44]
[1759848983260,0.68,225.78,225.77,3.44]
[1759848983768,2.61274912,225.78,225.77,3.44]
[1759848984272,1.93274912,225.78,225.77,3.44]
[1759848985364,4.4288941,225.79,225.77,3.44]
[1759848985562,1.93274912,225.78,225.77,3.44]
[1759848986161,2.61274912,225.78,225.77,3.44]
[1759848986671,23.41274912,225.78,225.77,3.44]
[1759848987769,23.41274912,225.78,225.77,37.94]
[1759848988374,22.73274912,225.78,225.77,37.94]
[1759848988963,27.88183938,225.78,225.77,37.94]
[1759848989675,27.16183938,225.78,225.77,37.94]
[1759848990756,27.88183938,225.78,225.77,37.94]
[1759848992057,49.83104025,225.78,225.74,0.2]
[1759848992262,47.89829113,225.78,225.75,65.34]
[1759848992467,0.72,225.77,225.75,65.34]
[1759848992779,0.72,225.76,225.75,65.34]
[1759848993174,0.72,225.76,225.75,34.52]
[1759848993396,2.65274912,225.76,225.75,66.44]
[1759848993573,2.65274912,225.76,225.75,34.52]
[1759848993882,20.8,225.75,225.74,0.2]
[1759848994082,27.88242796,225.75,225.74,0.2]
[1759848994589,27.88242796,225.75,225.74,1e-08]
[1759848994590,38.75890317,225.75,225.74,1e-08]
[1759848994773,10.87647521,225.74,225.73,1e-08]
[1759848994970,10.87647521,225.74,225.66,0.2]
[1759848994971,20.8,225.71,225.66,0.2]
[1759848995178,20.8,225.69,225.67,7.62]
[1759848996068,5.15105281,225.68,225.67,7.62]
[1759848996268,20.8,225.64,225.63,1e-08]
[1759848996467,41.34022081,225.64,225.63,1e-08]
[1759848996665,20.8,225.6,225.5,0.66]
[1759848996866,1.93274912,225.52,225.5,0.66]
[1759848997062,1.93274912,225.51,225.5,0.66]
[1759848997669,20.8,225.58,225.5,35.18]
[1759848997868,1.93274912,225.55,225.51,32.58]
[1759848998185,1.93274912,225.55,225.52,0.66]
[1759848998363,1.93274912,225.54,225.53,0.71]
[1759848998558,1.93274912,225.54,225.51,31.92]
[1759848998559,1.93274912,225.57,225.54,0.71]
[1759848998759,1.93274912,225.59,225.55,0.71]
[1759848998983,1.93274912,225.58,225.56,0.71]
[1759848999191,5.13238223,225.58,225.56,0.71]
[1759848999376,5.13238223,225.58,225.53,0.71]
[1759848999586,5.13238223,225.57,225.56,0.71]
[1759848999785,5.13238223,225.57,225.54,0.71]
[1759848999966,5.13238223,225.57,225.55,0.71]
[1759849000166,5.13238223,225.56,225.51,36.35435737]
[1759849000387,5.13238223,225.56,225.53,0.71]
[1759849000580,4.43321664,225.57,225.54,0.71]
[1759849000897,5.13238223,225.57,225.55,0.71]
[1759849001196,5.13238223,225.56,225.51,0.71]
[1759849001377,5.13238223,225.56,225.5,34.52]
[1759849001378,0.67,225.56,225.52,31.92]
[1759849001563,5.13238223,225.53,225.52,31.92]
[1759849002374,9.56638214,225.53,225.52,31.92]
[1759849002580,5.13238223,225.53,225.52,31.92]
[1759849002775,9.56643411,225.53,225.5,34.52]
[1759849002976,0.67,225.52,225.51,31.92]
[1759849003285,5.13238223,225.52,225.51,31.92]
[1759849004094,10.23657875,225.52,225.51,31.92]
[1759849004295,9.56657875,225.52,225.51,31.92]
[1759849005168,10.23657875,225.52,225.5,34.52]
[1759849005387,5.80238223,225.51,225.5,34.52]
[1759849005588,5.80238223,225.51,225.5,66.46]
[1759849005896,0.67,225.51,225.5,66.46]
[1759849006070,0.67,225.51,225.41,0.2]
[1759849006071,20.8,225.5,225.41,0.2]
[1759849006268,20.8,225.5,225.42,34.54]
[1759849006269,0.67,225.49,225.42,34.54]
[1759849007371,5.13238223,225.47,225.43,32.65]
[1759849007682,5.13238223,225.48,225.44,0.71]
[1759849007886,5.13238223,225.48,225.45,0.71]
[1759849008177,9.56718608,225.49,225.46,0.71]
[1759849008388,9.56718608,225.49,225.47,31.94]
[1759849008567,9.56718608,225.49,225.47,32.65]
[1759849008768,4.43480385,225.49,225.47,31.94]
[1759849008970,5.13238223,225.48,225.47,31.94]
[1759849009184,9.56718608,225.49,225.47,31.94]
[1759849009678,5.13238223,225.48,225.47,31.94]
[1759849010086,10.23736537,225.48,225.47,31.94]
[1759849010284,9.56736537,225.48,225.47,31.94]
[1759849011995,10.23736537,225.48,225.42,34.54]
[1759849012297,5.13238223,225.43,225.42,34.54]
[1759849012490,0.67,225.47,225.42,66.48]
[1759849012709,5.13238223,225.43,225.42,66.48]
[1759849012872,0.67,225.46,225.42,66.48]
[1759849013074,15.522441,225.48,225.42,66.48]
[1759849013274,5.13238223,225.43,225.42,66.48]
[1759849013774,0.67,225.46,225.42,66.48]
[1759849013975,5.13238223,225.43,225.42,66.48]
[1759849014175,9.56834904,225.43,225.42,66.48]
[1759849014723,4.43399991,225.53,225.42,71.62610989]
[1759849015006,5.13238223,225.51,225.43,0.71]
[1759849015171,5.13238223,225.5,225.43,0.71]
[1759849015372,5.13238223,225.51,225.43,0.71]
[1759849015593,30.23967589,225.65,225.44,10.87647521]
[1759849015594,5.13238223,225.52,225.44,10.87647521]
[1759849015773,5.13238223,225.53,225.45,0.71]
[1759849015974,4.43301711,225.58,225.47,15.31165505]
[1759849016174,5.13238223,225.58,225.49,10.87647521]
[1759849016501,21.47,225.62,225.5,32.65]
[1759849016688,5.13238223,225.57,225.51,0.71]
[1759849016886,5.13238223,225.57,225.51,32.65]
[1759849017096,5.13238223,225.59,225.52,32.65]
[1759849017297,5.13238223,225.6,225.53,0.71]
[1759849017682,5.13238223,225.59,225.53,0.71]
[1759849018095,9.56529044,225.59,225.53,0.71]
[1759849018295,5.13238223,225.58,225.53,0.71]
[1759849018502,9.56529044,225.59,225.53,5.14399582]
[1759849018813,5.13238223,225.59,225.53,5.14399582]
[1759849019012,9.56530273,225.59,225.53,0.71]
[1759849019314,5.13238223,225.54,225.48,0.71]
[1759849019626,20.8,225.56,225.49,31.94]
[1759849019912,20.8,225.56,225.5,0.71]
[1759849020112,5.13238223,225.55,225.5,0.71]
[1759849020316,5.13238223,225.57,225.5,0.71]
[1759849020520,20.8,225.58,225.5,5.14456015]
[1759849020715,5.13238223,225.57,225.5,0.71]
[1759849020905,16.1848876,225.59,225.5,0.71]
[1759849021094,5.13238223,225.56,225.5,0.71]
[1759849022015,16.1848876,225.59,225.5,5.1445677]
[1759849022016,15.5148876,225.59,225.5,5.1445677]
[1759849022212,5.13238223,225.59,225.51,0.71]
[1759849022419,5.13238223,225.58,225.51,0.71]
[1759849022715,5.13238223,225.57,225.51,0.71]
[1759849022906,5.13238223,225.54,225.52,31.94]
[1759849023116,5.80238223,225.53,225.44,0.71]
[1759849023310,5.13238223,225.5,225.45,31.94]
[1759849023719,5.13238223,225.5,225.46,0.71]
[1759849024023,24.40938107,225.56,225.47,0.71]
[1759849024323,5.13238223,225.53,225.47,5.14517076]
[1759849024510,9.56598896,225.55,225.47,5.14517076]
[1759849024714,9.56598896,225.55,225.48,0.71]
[1759849024907,5.13238223,225.54,225.48,0.71]
[1759849025419,4.43342332,225.56,225.48,0.71]
[1759849026206,4.43342332,225.56,225.48,5.14478734]
[1759849026618,5.13238223,225.55,225.48,0.71]
[1759849026817,5.13238223,225.53,225.48,0.71]
[1759849026999,5.80238223,225.53,225.49,31.94]
[1759849027199,5.13238223,225.52,225.49,31.94]
[1759849027431,5.13238223,225.52,225.5,31.94]
[1759849027819,20.8,225.58,225.51,0.71]
[1759849028133,5.13238223,225.57,225.51,0.71]
[1759849028294,9.56574807,225.57,225.51,0.71]
[1759849029222,5.13238223,225.55,225.47,10.87647521]
[1759849029443,0.67,225.56,225.48,31.92]
[1759849029615,0.67,225.61,225.49,10.87647521]
[1759849029944,9.56516981,225.6,225.49,10.87647521]
[1759849030105,5.13238223,225.59,225.49,10.87647521]
[1759849030299,4.43321363,225.57,225.47,15.31165505]
[1759849030505,4.43321363,225.57,225.48,31.92]
[1759849030804,5.80238223,225.59,225.48,31.92]
[1759849031118,5.13238223,225.55,225.46,4.43536157]
[1759849031318,0.67,225.54,225.47,31.92]
[1759849031641,5.13238223,225.5,225.44,0.42]
[1759849031935,0.67,225.51,225.45,31.92]
[1759849032242,4.43478646,225.49,225.46,31.92]
[1759849032401,4.43478646,225.49,225.42,34.96]
[1759849032402,10.23716869,225.49,225.47,31.92]
[1759849032602,5.80238223,225.48,225.47,31.92]
[1759849033315,0.67,225.51,225.47,31.92]
[1759849033520,5.80238223,225.5,225.47,31.92]
[1759849033721,0.67,225.49,225.47,31.92]
[1759849034627,5.10492081,225.49,225.47,31.92]
[1759849035034,10.23730304,225.49,225.47,31.92]
[1759849035334,5.10380331,225.54,225.47,31.92]
[1759849035538,5.13238223,225.51,225.47,31.92]
[1759849035726,5.80238223,225.5,225.47,31.92]
[1759849035926,2.95966906,225.53,225.47,31.92]
[1759849035927,5.80238223,225.49,225.47,31.92]
[1759849036130,5.80238223,225.49,225.48,31.92]
[1759849036516,5.10478646,225.49,225.48,31.92]
[1759849036745,10.23716869,225.49,225.48,31.92]
[1759849037011,9.56716869,225.49,225.48,31.92]
[1759849037349,10.23716869,225.49,225.48,31.92]
[1759849037521,5.13238223,225.5,225.48,31.92]
[1759849037720,0.67,225.49,225.44,4.43575702]
[1759849037938,5.13238223,225.5,225.45,31.92]
[1759849038144,5.13238223,225.51,225.45,32.34]
[1759849038445,4.43399991,225.53,225.45,32.34]
[1759849038620,4.43439315,225.51,225.45,36.77552124]
[1759849038828,20.8,225.55,225.46,0.42]
[1759849039029,0.67,225.57,225.46,11.29647521]
[1759849039332,5.13238223,225.55,225.47,32.34]
[1759849039538,5.13238223,225.52,225.47,31.92]
[1759849039768,5.80238223,225.52,225.44,11.29647521]
[1759849040050,5.80238223,225.52,225.45,36.3555489]
[1759849040415,5.13238223,225.54,225.45,36.3555489]
[1759849040631,7.40622433,225.54,225.46,0.42]
[1759849040837,4.43381474,225.54,225.46,0.42]
[1759849041146,2.97240959,225.54,225.47,10.87647521]
[1759849041339,12.53807914,225.57,225.49,10.87647521]
[1759849041635,12.53807914,225.57,225.48,0.42]
[1759849041636,2.97240959,225.56,225.5,31.92]
[1759849041847,5.80238223,225.61,225.5,31.92]
[1759849042018,5.13238223,225.61,225.5,31.92]
[1759849042217,0.67,225.6,225.5,31.92]
[1759849042441,5.13238223,225.58,225.5,31.92]
[1759849042650,5.80238223,225.59,225.5,31.92]
[1759849043022,2.97385468,225.61,225.5,31.92]
[1759849043223,0.67,225.62,225.5,31.92]
[1759849043224,2.97385468,225.65,225.5,31.92]
[1759849043425,0.67,225.65,225.5,31.92]
[1759849043627,5.13238223,225.63,225.5,31.92]
[1759849044040,5.10185425,225.64,225.5,31.92]
[1759849044227,5.13238223,225.66,225.5,31.92]
[1759849044429,25.93238223,225.66,225.5,31.92]
[1759849044634,0.67,225.65,225.5,31.92]
[1759849044834,2.98137574,225.69,225.5,31.92]
[1759849045043,8.24998489,225.68,225.5,31.92]
[1759849045222,7.57998489,225.67,225.5,31.92]
[1759849046055,7.57998489,225.61,225.45,22.17786648]
[1759849046243,7.57998489,225.59,225.46,31.92]
[1759849046732,7.57998489,225.58,225.46,47.44381796]
[1759849046930,4.43299235,225.59,225.46,11.0884414]
[1759849047134,4.43299235,225.59,225.47,31.92]
[1759849047334,8.24998489,225.6,225.47,52.72]
[1759849047534,8.24998489,225.6,225.47,31.92]
[1759849047740,12.68269362,225.6,225.5,20.8]
[1759849048248,7.57998489,225.59,225.5,20.8]
[1759849048556,8.25998489,225.59,225.47,52.72]
[1759849048749,8.25998489,225.59,225.5,20.8]
[1759849049048,7.57998489,225.54,225.47,20.8]
[1759849049251,7.57998489,225.54,225.48,20.8]
[1759849049631,8.25998489,225.54,225.48,20.8]
[1759849050029,7.57998489,225.51,225.44,38.99568374]
[1759849050351,0.68,225.5,225.45,31.92]
[1759849050732,7.57998489,225.51,225.45,31.92]
[1759849050931,0.68,225.5,225.45,31.92]
[1759849051335,7.57998489,225.51,225.45,36.35551163]
[1759849051663,8.25998489,225.51,225.45,31.92]
[1759849051851,8.25998489,225.5,225.45,31.92]
[1759849052053,0.68,225.49,225.45,31.92]
[1759849052249,0.68,225.49,225.44,34.56]
[1759849052456,7.57998489,225.49,225.44,34.56]
[1759849052627,0.68,225.48,225.45,31.92]
[1759849052831,8.25998489,225.49,225.45,31.92]
[1759849053228,12.69486409,225.49,225.45,31.92]
[1759849053430,4.43457776,225.51,225.45,36.35556737]
[1759849053649,7.57998489,225.51,225.45,36.35556737]
[1759849053847,0.68,225.52,225.45,36.35556737]
[1759849054047,21.48,225.55,225.45,36.35556737]
[1759849054237,7.57998489,225.56,225.45,47.44450061]
[1759849054439,0.68,225.55,225.45,47.44450061]
[1759849054645,8.25998489,225.55,225.45,47.44450061]
[1759849055143,8.25998489,225.55,225.45,36.35556737]
[1759849055343,12.69367376,225.55,225.45,36.35556737]
[1759849055551,4.43368887,225.55,225.45,36.35556737]
[1759849055757,12.01367376,225.55,225.45,31.92]
[1759849055946,12.01367376,225.55,225.45,36.35556364]
[1759849056253,12.01367376,225.55,225.45,47.44449688]
[1759849057341,4.43368887,225.55,225.45,47.44449688]
[1759849057656,12.01367376,225.55,225.45,36.35556364]
[1759849059564,4.43399991,225.53,225.45,36.35556364]
[1759849060137,0.66,225.55,225.48,20.8]
[1759849060138,8.23998489,225.55,225.48,20.8]
[1759849060341,7.57998489,225.56,225.48,20.8]
[1759849060536,8.23998489,225.57,225.48,20.8]
[1759849061057,0.66,225.6,225.49,20.8]
[1759849061261,29.03998489,225.62,225.49,20.8]
[1759849061863,12.67239518,225.62,225.5,26.39753951]
[1759849062038,12.01190543,225.64,225.5,26.39753951]
[1759849062565,7.57998489,225.62,225.5,48.57048851]
[1759849063059,7.57998489,225.62,225.5,26.39753951]
[1759849063242,5.09192054,225.64,225.5,15.31106501]
[1759849063441,5.09192054,225.64,225.5,48.57048851]
[1759849063643,10.87647521,225.67,225.5,48.57048851]
[1759849063644,7.57998489,225.65,225.5,48.57048851]
[1759849063845,12.01147481,225.66,225.5,48.57048851]
[1759849064466,12.01147481,225.66,225.5,61.84048851]
[1759849064766,12.671242,225.67,225.5,61.84048851]
[1759849065059,7.57998489,225.66,225.5,61.84048851]
[1759849065267,4.43125711,225.67,225.5,61.84048851]
[1759849065469,8.23998489,225.66,225.5,61.84048851]
[1759849065648,0.66,225.66,225.5,61.84048851]
[1759849065854,29.03998489,225.69,225.5,61.84048851]
[1759849066054,33.47086001,225.69,225.5,61.84048851]
[1759849066450,8.23998489,225.68,225.5,61.84048851]
[1759849066652,7.57998489,225.67,225.5,61.84048851]
[1759849067243,7.57998489,225.64,225.5,61.84048851]
[1759849067440,7.57998489,225.63,225.5,48.57048851]
[1759849067663,7.57998489,225.62,225.5,48.57048851]
[1759849068772,5.09204684,225.63,225.5,48.57048851]
[1759849069271,7.57998489,225.62,225.5,48.57048851]
[1759849069766,7.57998489,225.65,225.5,61.84048851]
[1759849070444,8.23998489,225.65,225.5,61.84048851]
[1759849071342,7.57998489,225.64,225.5,61.84048851]
[1759849071760,8.23998489,225.65,225.5,61.84048851]
[1759849072664,12.67164061,225.65,225.5,61.84048851]
[1759849073651,7.57998489,225.63,225.5,61.84048851]
[1759849073845,7.57998489,225.62,225.5,61.84048851]
[1759849074049,7.57998489,225.65,225.5,61.84048851]
[1759849074264,7.57998489,225.67,225.5,61.84048851]
[1759849074449,8.23998489,225.67,225.5,61.84048851]
[1759849074761,7.57998489,225.66,225.5,61.84048851]
[1759849075143,4.43144553,225.66,225.5,61.84048851]
[1759849075358,12.01143042,225.66,225.5,61.84048851]
[1759849075769,7.57998489,225.65,225.5,61.84048851]
[1759849075957,7.57998489,225.64,225.5,61.84048851]
[1759849076864,5.09144553,225.66,225.5,61.84048851]
[1759849077067,12.01165423,225.65,225.5,61.84048851]
[1759849077268,5.09146284,225.66,225.5,61.84048851]
[1759849077569,0.66,225.68,225.5,61.84048851]
[1759849077768,7.57998489,225.69,225.5,66.85453273]
[1759849077947,5.09066995,225.7,225.53,1.19751469]
[1759849077948,12.67065484,225.7,225.53,1.19751469]
[1759849078148,7.57998489,225.68,225.55,13.27]
[1759849078469,8.23998489,225.68,225.57,10.87647521]
[1759849078770,5.0910776,225.68,225.58,15.51555988]
[1759849078953,7.57998489,225.66,225.59,31.88]
[1759849079768,7.57998489,225.66,225.6,31.88]
[1759849079956,7.57998489,225.66,225.61,4.43242764]
[1759849080157,7.57998489,225.67,225.61,4.43242764]
[1759849080356,8.23998489,225.68,225.62,34.54]
[1759849080672,7.57998489,225.66,225.62,34.54]
[1759849080880,20.8,225.71,225.62,34.54]
[1759849081071,7.57998489,225.69,225.62,34.54]
[1759849081591,21.46,225.71,225.62,34.54]
[1759849081592,8.23998489,225.68,225.62,34.54]
[1759849082252,8.23998489,225.68,225.63,4.43203474]
[1759849082650,0.66,225.68,225.63,4.43203474]
[1759849082861,8.23998489,225.68,225.63,4.43203474]
[1759849083084,7.57998489,225.69,225.63,4.43203474]
[1759849083575,5.09052047,225.71,225.63,4.43203474]
[1759849083781,7.57998489,225.69,225.63,4.43203474]
[1759849084373,7.57998489,225.67,225.63,4.43203474]
[1759849084676,8.23998489,225.68,225.64,31.88]
[1759849084886,0.66,225.67,225.62,34.54]
[1759849085089,7.57998489,225.65,225.63,31.88]
[1759849085255,0.66,225.65,225.63,31.88]
[1759849085460,8.23998489,225.64,225.62,34.54]
[1759849085765,8.23998489,225.64,225.63,31.88]
[1759849086176,7.57998489,225.64,225.62,34.54]
[1759849086390,8.23998489,225.63,225.62,34.54]
[1759849086706,10.87647521,225.71,225.62,66.42]
[1759849086862,31.67647521,225.73,225.62,70.85222186]
[1759849087057,7.57998489,225.68,225.62,70.85222186]
[1759849087285,7.57998489,225.69,225.62,70.85222186]
[1759849087457,0.66,225.7,225.62,70.85222186]
[1759849087663,7.57998489,225.68,225.62,70.85222186]
[1759849087885,8.23998489,225.69,225.62,70.85222186]
[1759849088185,12.6708933,225.69,225.62,81.93279982]
[1759849088376,8.23998489,225.69,225.62,81.93279982]
[1759849088575,7.57998489,225.7,225.62,81.93279982]
[1759849089175,12.01072084,225.7,225.62,81.93279982]
[1759849089376,4.43073595,225.7,225.62,81.93279982]
[1759849089575,7.57998489,225.69,225.62,81.93279982]
[1759849089772,7.57998489,225.66,225.62,34.54]
[1759849089975,20.8,225.63,225.53,5.01404422]
[1759849090173,7.57998489,225.54,225.42,4.4361636]
[1759849090373,7.57998489,225.52,225.43,51.48]
[1759849090575,7.57998489,225.53,225.43,51.48]
[1759849090775,4.4361636,225.68,225.46,34.07]
[1759849090974,0.66,225.6,225.47,42.73647521]
[1759849091284,7.57998489,225.58,225.5,20.8]
[1759849091487,7.57998489,225.56,225.5,20.8]
[1759849091690,7.57998489,225.56,225.51,31.86]
[1759849092770,7.57998489,225.57,225.52,4.43419652]
[1759849092983,7.57998489,225.58,225.52,4.43419652]
[1759849093188,7.57998489,225.59,225.52,4.43419652]
[1759849093386,7.57998489,225.59,225.52,15.51968782]
[1759849093585,7.57998489,225.6,225.52,15.51968782]
[1759849093785,12.01262687,225.6,225.52,15.51968782]
[1759849094117,7.57998489,225.6,225.52,15.51968782]
[1759849094397,7.57998489,225.58,225.52,4.43419652]
[1759849095515,8.23998489,225.59,225.52,15.51968782]
[1759849096014,7.57998489,225.58,225.52,4.43419652]
[1759849096309,5.09286371,225.59,225.52,4.43419652]